bitfinex-derivatives/quotes_ETHF0:USTF0_20240924
["timestamp","ask_amount","ask_price","bid_price","bid_amount"]
[1727167143416,0.37562,2662.4,2662.0,0.37567]
[1727167143619,0.37564,2662.3,2661.5,0.591]
[1727167143815,0.37562,2662.4,2661.9,0.37567]
[1727167144022,0.37564,2662.3,2661.9,0.37567]
[1727167144211,3.2078,2662.4,2661.5,0.591]
[1727167144413,0.93919,2662.0,2661.5,0.591]
[1727167144617,0.5972,2661.9,2661.4,3.2078]
[1727167144818,0.93926,2661.8,2661.4,3.2078]
[1727167145121,5.5449,2661.9,2661.4,3.2078]
[1727167145316,0.37574,2661.5,2661.4,3.2078]
[1727167145515,3.7568,2661.8,2661.4,3.2078]
[1727167146225,1.1895,2661.9,2661.4,3.2078]
[1727167146421,1.1895,2661.9,2661.5,0.37574]
[1727167146422,1.56519,2661.9,2661.5,0.37574]
[1727167146628,0.3757,2661.8,2661.4,3.58355]
[1727167146817,0.3757,2661.8,2661.4,3.2078]
[1727167147322,3.2078,2662.1,2661.8,0.3757]
[1727167147515,3.58346,2662.1,2661.8,0.3757]
[1727167147924,3.2078,2662.1,2662.0,0.37567]
[1727167148223,3.2078,2662.1,2661.7,0.3757]
[1727167148224,0.37567,2662.0,2661.7,0.3757]
[1727167149025,0.37568,2662.0,2661.6,0.37572]
[1727167149220,3.2078,2661.9,2661.1,0.6177]
[1727167149519,3.2078,2661.9,2660.9,1.2871]
[1727167149520,0.37574,2661.6,2661.2,3.58358]
[1727167149725,0.37572,2661.7,2661.2,3.2078]
[1727167149920,0.37572,2661.7,2661.3,0.37577]
[1727167150121,0.37573,2661.6,2661.3,0.37577]
[1727167150341,0.37572,2661.7,2661.4,0.37575]
[1727167150520,0.37571,2661.8,2661.5,0.37574]
[1727167150717,0.93915,2662.1,2661.2,3.2078]
[1727167150921,0.37571,2661.8,2661.5,0.37574]
[1727167151121,0.37571,2661.7,2661.4,0.37575]
[1727167151327,0.37571,2661.7,2661.2,3.2078]
[1727167151328,0.37573,2661.6,2661.3,0.37577]
[1727167151531,0.37573,2661.6,2661.2,3.2078]
[1727167151532,0.37572,2661.7,2661.4,0.37576]
[1727167152518,1.7901,2662.1,2661.2,3.2078]
[1727167152931,0.37569,2661.9,2661.6,0.37572]
[1727167153230,4.082,2662.2,2661.5,3.2078]
[1727167153529,0.37563,2662.4,2661.9,3.2078]
[1727167153732,0.6302,2662.5,2662.3,3.2078]
[1727167153925,3.756,2662.5,2662.3,3.2078]
[1727167154741,0.37559,2662.6,2662.3,3.58343]
[1727167155026,0.37559,2662.6,2662.3,3.2078]
[1727167155238,0.37558,2662.7,2662.3,3.2078]
[1727167155427,4.7122,2662.9,2662.3,3.2078]
[1727167155625,0.3756,2662.5,2662.4,1.2122]
[1727167155823,4.082,2662.9,2662.4,1.2122]
[1727167155824,0.3756,2662.6,2662.4,1.2122]
[1727167156026,0.37558,2662.7,2662.4,1.2122]
[1727167156330,4.082,2662.9,2662.4,1.2122]
[1727167156331,4.45756,2662.9,2662.5,0.3756]
[1727167156535,3.2078,2663.1,2662.5,0.3756]
[1727167156736,3.2078,2663.1,2662.6,0.37558]
[1727167157032,0.37553,2663.0,2662.7,0.37556]
[1727167157230,0.37555,2662.9,2662.6,0.37558]
[1727167158540,3.2078,2663.1,2662.7,0.37557]
[1727167158541,0.37554,2663.0,2662.7,0.37557]
[1727167158735,0.37555,2662.9,2662.6,0.37558]
[1727167159338,0.37554,2663.0,2662.7,0.37557]
[1727167159738,1.8119,2663.3,2662.6,3.2078]
[1727167159932,0.37555,2662.9,2662.6,3.58338]
[1727167160133,0.37552,2663.1,2662.6,3.2078]
[1727167160342,1.8119,2663.3,2662.6,3.2078]
[1727167160539,0.37555,2662.9,2662.6,3.58338]
[1727167161846,1.8119,2663.3,2662.6,3.2078]
[1727167162034,0.37551,2663.2,2662.9,0.37553]
[1727167162233,0.6302,2663.3,2662.6,3.2078]
[1727167162234,0.37553,2663.1,2662.8,0.37556]
[1727167162439,0.6302,2663.3,2662.6,3.2078]
[1727167162641,4.082,2663.4,2663.1,0.37552]
[1727167162834,0.37548,2663.4,2663.1,0.37552]
[1727167163037,1.7923,2663.7,2662.9,3.2078]
[1727167163240,4.082,2664.0,2663.2,6.4578]
[1727167163436,11.25843,2664.2,2663.5,0.37545]
[1727167163437,0.93843,2664.2,2663.5,0.37545]
[1727167164146,0.93841,2664.2,2663.3,3.7864]
[1727167164339,0.3754,2664.0,2663.6,0.37544]
[1727167164531,0.3754,2664.0,2663.3,3.7864]
[1727167164734,0.37538,2664.1,2663.3,3.7864]
[1727167165044,0.37538,2664.1,2663.8,0.37541]
[1727167165241,0.3754,2664.0,2663.6,3.58323]
[1727167165441,6.0057,2664.3,2663.6,3.8379]
[1727167165442,0.37543,2663.7,2663.6,3.8379]
[1727167165643,0.37543,2663.7,2663.6,3.2078]
[1727167166142,0.93854,2663.9,2663.3,0.5786]
[1727167166448,0.37545,2663.6,2663.3,0.95408]
[1727167166746,0.37544,2663.7,2663.4,0.37547]
[1727167167143,0.37539,2664.0,2663.7,0.37543]
[1727167167640,0.3754,2664.0,2663.7,0.37542]
[1727167168847,0.3754,2664.0,2663.6,0.6301]
[1727167168848,3.2078,2664.1,2663.6,1.00554]
[1727167169237,0.37542,2663.8,2663.6,1.00554]
[1727167169440,3.2078,2664.1,2663.6,0.6301]
[1727167169649,3.2078,2664.1,2663.6,1.00554]
[1727167169841,0.37542,2663.8,2663.6,1.00554]
[1727167170452,0.37542,2663.8,2663.6,0.6301]
[1727167170650,0.37542,2663.8,2663.5,3.58325]
[1727167170651,0.37545,2663.6,2663.3,0.5786]
[1727167170944,0.37545,2663.6,2663.4,0.37547]
[1727167171449,0.37546,2663.5,2663.3,0.95408]
[1727167171648,0.93852,2663.9,2663.3,0.5786]
[1727167171840,0.37547,2663.4,2663.3,0.5786]
[1727167172042,0.37552,2663.1,2663.0,3.806]
[1727167172248,0.9386,2663.7,2663.0,3.806]
[1727167172441,0.93862,2663.6,2663.1,0.37551]
[1727167172743,0.37549,2663.3,2663.1,0.37551]
[1727167173749,0.37551,2663.2,2663.0,4.18152]
[1727167173946,0.37549,2663.3,2663.0,3.806]
[1727167174147,0.37549,2663.3,2663.0,4.18152]
[1727167174650,0.37549,2663.3,2663.1,0.37551]
[1727167175047,0.37551,2663.2,2663.0,4.18152]
[1727167176152,0.3755,2663.2,2663.1,0.37551]
[1727167176347,0.3755,2663.3,2663.1,0.37552]
[1727167176546,0.37551,2663.2,2663.0,4.18152]
[1727167176942,0.37551,2663.2,2663.0,3.806]
[1727167177149,0.37551,2663.2,2663.0,4.18152]
[1727167178244,0.93866,2663.5,2663.0,4.18152]
[1727167178445,0.3755,2663.3,2663.1,0.37552]
[1727167178749,0.37551,2663.2,2663.0,4.18152]
[1727167179145,0.37552,2663.1,2663.0,3.806]
[1727167179453,1.31432,2663.1,2663.0,3.2078]
[1727167179952,0.37552,2663.1,2663.0,3.2078]
[1727167180158,4.13072,2663.1,2663.0,3.2078]
[1727167180367,5.06952,2663.1,2663.0,3.2078]
[1727167181448,4.13072,2663.1,2663.0,3.2078]
[1727167181648,5.06952,2663.1,2663.0,3.2078]
[1727167183655,5.06952,2663.1,2662.4,0.624]
[1727167183656,0.37561,2662.4,2662.3,0.616]
[1727167183863,9.7552,2663.1,2662.3,0.616]
[1727167183864,0.9389,2662.8,2662.3,0.616]
[1727167184154,0.93894,2662.7,2662.3,0.616]
[1727167184357,0.93894,2662.7,2662.3,0.99163]
[1727167184655,0.93894,2662.7,2662.2,7.1055]
[1727167184656,0.37566,2662.1,2662.0,3.2078]
[1727167185068,0.3757,2661.8,2661.7,1.2577]
[1727167185355,1.91725259,2662.3,2661.4,3.2078]
[1727167185356,3.7568,2662.0,2661.4,3.2078]
[1727167185558,0.93921,2662.0,2661.4,3.58356]
[1727167185760,1.91738259,2662.0,2661.4,3.58356]
[1727167185961,0.97817259,2662.0,2661.4,3.2078]
[1727167186167,0.37572,2661.7,2661.4,3.58354]
[1727167186365,0.37571,2661.8,2661.5,0.37574]
[1727167186662,0.97817259,2662.0,2661.4,3.58355]
[1727167186663,0.37573,2661.6,2661.4,3.58355]
[1727167187051,0.37572,2661.7,2661.4,3.2078]
[1727167187256,0.37573,2661.7,2661.4,3.2078]
[1727167187457,0.37573,2661.7,2661.4,3.58356]
[1727167188265,0.37571,2661.8,2661.4,3.58356]
[1727167188761,0.97817259,2662.0,2661.4,3.2078]
[1727167188961,0.37574,2661.5,2661.4,3.2078]
[1727167189953,0.37573,2661.6,2661.4,3.2078]
[1727167190159,0.37572,2661.7,2661.4,3.2078]
[1727167190359,0.37572,2661.7,2661.4,3.58355]
[1727167190658,6.07555,2662.2,2661.4,3.2078]
[1727167190866,0.37574,2661.6,2661.4,3.2078]
[1727167191158,0.37572,2661.7,2661.4,3.2078]
[1727167191362,0.3757,2661.8,2661.4,3.2078]
[1727167191562,0.3757,2661.8,2661.4,3.58354]
[1727167191760,0.37572,2661.7,2661.4,3.58355]
[1727167191958,0.93918,2662.1,2661.5,0.37574]
[1727167192461,0.37569,2661.9,2661.4,3.2078]
[1727167192662,0.37569,2661.9,2661.6,0.37573]
[1727167192866,0.37569,2661.9,2661.5,0.37573]
[1727167193063,0.37569,2661.9,2661.6,0.37572]
[1727167193658,0.37571,2661.8,2661.5,0.37574]
[1727167194455,0.37571,2661.7,2661.4,0.37575]
[1727167194656,0.37571,2661.8,2661.5,0.37574]
[1727167194860,0.37572,2661.7,2661.4,0.37575]
[1727167195064,0.37571,2661.8,2661.5,0.37574]
[1727167195566,0.93915,2662.1,2661.4,0.37575]
[1727167195567,0.37572,2661.7,2661.4,0.37575]
[1727167195773,0.93915,2662.1,2661.5,0.37574]
[1727167195774,0.37571,2661.8,2661.5,0.37574]
[1727167196363,0.93915,2662.1,2661.4,2.64]
[1727167196669,0.93915,2662.1,2661.4,3.01576]
[1727167196670,0.93922,2661.9,2661.4,3.01576]
[1727167196870,0.93922,2661.9,2661.4,2.64]
[1727167196871,0.37573,2661.6,2661.4,2.64]
[1727167197071,4.5686,2662.2,2661.4,2.64]
[1727167197270,0.37576,2661.4,2661.2,1.2577]
[1727167198862,0.37576,2661.4,2661.2,1.63348]
[1727167199064,2.64,2661.7,2661.0,2.64]
[1727167199263,0.37576,2661.4,2661.1,0.37579]
[1727167199562,0.37575,2661.5,2661.2,0.37577]
[1727167199969,0.6153,2661.6,2661.0,3.01581]
[1727167199970,1.55465,2661.6,2661.0,3.01581]
[1727167200172,0.37578,2661.3,2661.0,3.01581]
[1727167200562,0.37578,2661.3,2661.1,0.37579]
[1727167200872,0.37578,2661.3,2661.0,3.0158]
[1727167201077,1.55465,2661.6,2661.0,2.64]
[1727167201078,0.37579,2661.2,2661.0,2.64]
[1727167201275,0.37578,2661.3,2661.0,2.64]
[1727167201573,0.37575,2661.5,2661.3,0.37577]
[1727167201774,3.57925,2661.9,2661.4,0.37575]
[1727167201976,3.2078,2661.8,2661.3,0.37576]
[1727167202268,3.2078,2661.8,2661.2,0.6415]
[1727167202269,0.37575,2661.5,2661.2,1.01728]
[1727167202471,4.14708,2661.8,2661.4,0.37576]
[1727167202472,0.37573,2661.6,2661.4,0.37576]
[1727167202777,0.37573,2661.6,2661.3,0.37576]
[1727167203163,0.37573,2661.6,2661.4,0.37575]
[1727167203369,3.2078,2661.8,2661.2,0.6415]
[1727167203565,5.6365,2662.0,2661.2,3.8493]
[1727167203762,0.37569,2661.9,2661.4,2.64]
[1727167203965,4.082,2662.0,2661.6,2.64]
[1727167204169,0.37566,2662.1,2661.8,0.3757]
[1727167204370,1.2895,2662.2,2661.8,0.3757]
[1727167204371,0.37567,2662.0,2661.8,0.3757]
[1727167204571,0.37567,2662.0,2661.7,0.37571]
[1727167204774,0.37567,2662.1,2661.8,0.37569]
[1727167204966,3.8461,2662.3,2661.7,0.3757]
[1727167205163,0.37567,2662.1,2661.8,1.0696]
[1727167205362,0.6383,2662.3,2661.8,1.0696]
[1727167205363,0.37567,2662.0,2661.8,0.6939]
[1727167205570,1.5774,2662.3,2661.8,0.6939]
[1727167205868,0.37569,2661.9,2661.8,0.6939]
[1727167206065,0.37571,2661.8,2661.5,4.19333]
[1727167206574,0.37569,2661.9,2661.6,0.37573]
[1727167207077,0.93922,2661.9,2661.5,3.8176]
[1727167207370,0.37573,2661.6,2661.5,3.8176]
[1727167207774,4.13333,2661.6,2661.5,3.2078]
[1727167209271,3.7576,2661.6,2661.5,3.2078]
[1727167209477,0.37572,2661.7,2661.5,3.2078]
[1727167209774,4.13252,2661.7,2661.5,3.58354]
[1727167209979,0.37572,2661.7,2661.5,3.58354]
[1727167210477,0.37571,2661.8,2661.5,3.58354]
[1727167210677,0.37569,2661.9,2661.5,3.2078]
[1727167210975,1.61563,2662.2,2661.6,0.37572]
[1727167210976,0.93915,2662.1,2661.6,0.37572]
[1727167211168,0.93915,2662.1,2661.7,0.37571]
[1727167211169,0.37569,2661.9,2661.7,0.37571]
[1727167211781,4.2174,2662.3,2661.6,2.64]
[1727167211782,0.37568,2662.0,2661.6,2.64]
[1727167211974,0.37569,2661.9,2661.7,0.37571]
[1727167212177,0.37569,2661.9,2661.8,1.42]
[1727167212878,3.2783,2662.3,2661.8,1.42]
[1727167212879,0.37567,2662.0,2661.8,1.42]
[1727167213069,0.37567,2662.0,2661.8,1.79569]
[1727167213271,0.6383,2662.3,2661.8,1.42]
[1727167213272,0.37569,2661.9,2661.8,1.42]
[1727167214468,0.37569,2661.9,2661.7,0.37571]
[1727167215479,6.3968,2661.9,2661.3,1.3525]
[1727167215667,0.37575,2661.5,2661.3,1.72827]
[1727167215873,0.37575,2661.5,2661.3,1.3525]
[1727167216483,0.37576,2661.4,2661.3,1.3525]
[1727167216874,0.37575,2661.5,2661.3,1.72827]
[1727167217076,0.37576,2661.4,2661.3,1.3525]
[1727167217485,0.37575,2661.5,2661.3,1.3525]
[1727167218481,0.37576,2661.4,2661.3,0.696]
[1727167219092,0.37576,2661.4,2660.9,2.64]
[1727167219093,0.37581,2661.0,2660.9,3.2078]
[1727167219289,0.37581,2661.0,2660.5,0.7405]
[1727167219290,2.64,2661.0,2660.5,0.7405]
[1727167219499,3.01587,2660.6,2660.5,0.7405]
[1727167220289,3.01587,2660.6,2660.4,0.697]
[1727167220290,0.37588,2660.5,2660.4,0.697]
[1727167220497,0.93972,2660.5,2660.1,0.46563333]
[1727167220705,2.64,2660.6,2660.1,0.46563333]
[1727167220988,0.37592,2660.3,2660.0,0.7241]
[1727167221187,0.37593,2660.2,2660.0,0.7241]
[1727167221588,0.93972,2660.5,2660.0,0.7241]
[1727167221895,0.37593,2660.2,2660.0,0.7241]
[1727167222293,0.37593,2660.2,2659.9,3.58377]
[1727167222589,3.57973,2660.5,2659.9,3.9319]
[1727167222895,0.37591,2660.3,2659.9,3.9319]
[1727167223082,0.3759,2660.4,2660.0,0.37595]
[1727167224393,0.3759,2660.4,2659.9,3.9319]
[1727167224394,0.93968,2660.6,2659.9,3.9319]
[1727167224589,0.37592,2660.3,2659.9,3.9319]
[1727167224791,0.37595,2660.1,2659.9,3.9319]
[1727167224996,2.64,2660.3,2659.9,3.2078]
[1727167225291,0.6819,2660.2,2659.9,3.2078]
[1727167225497,2.64,2660.1,2659.9,3.2078]
[1727167225691,6.77515,2660.1,2659.9,3.2078]
[1727167225899,1.05783,2660.2,2659.9,3.2078]
[1727167226286,0.6819,2660.2,2659.9,3.2078]
[1727167226502,0.6819,2660.2,2659.9,3.58377]
[1727167226703,0.37592,2660.3,2659.9,3.2078]
[1727167226898,0.37592,2660.3,2659.9,3.58377]
[1727167227197,0.37592,2660.3,2659.9,3.2078]
[1727167227800,0.3759,2660.4,2659.9,3.58376]
[1727167228895,0.37591,2660.4,2659.9,3.58376]
[1727167229099,1.10149,2660.5,2660.0,0.37595]
[1727167229302,1.10149,2660.5,2660.1,1.12134]
[1727167229497,1.10149,2660.5,2660.1,0.7454]
[1727167230700,0.3759,2660.4,2660.1,0.7454]
[1727167230894,3.3656,2660.5,2660.1,0.7454]
[1727167231099,0.37594,2660.2,2659.9,3.2078]
[1727167231499,0.37591,2660.4,2659.9,3.58376]
[1727167231890,3.3656,2660.5,2659.9,3.2078]
[1727167232094,3.3656,2660.5,2660.1,0.37593]
[1727167232295,0.7256,2660.5,2660.1,0.37593]
[1727167232608,3.58367,2660.6,2660.2,1.08942]
[1727167232804,4.0795,2660.7,2660.2,0.7135]
[1727167232998,4.0795,2660.7,2660.3,0.7326]
[1727167233199,3.74366,2660.7,2660.3,1.1085]
[1727167233399,3.3678,2660.7,2660.3,1.1085]
[1727167233899,3.74366,2660.7,2660.3,1.1085]
[1727167234497,3.74366,2660.7,2660.3,1.10851]
[1727167234796,3.74366,2660.7,2660.2,0.7135]
[1727167234797,3.3678,2660.7,2660.2,0.7135]
[1727167234997,3.74366,2660.7,2660.5,0.18]
[1727167235507,2.64,2660.7,2660.5,0.18]
[1727167235902,3.01586,2660.7,2660.5,0.18]
[1727167236805,2.64,2660.7,2660.5,0.18]
[1727167237197,3.01586,2660.7,2660.5,0.18]
[1727167237907,0.723,2660.8,2660.5,0.18]
[1727167238205,1.09885,2660.8,2660.5,0.18]
[1727167239307,2.64,2660.9,2660.5,0.18]
[1727167239603,2.64,2660.9,2660.6,0.7371]
[1727167239798,3.01584,2660.9,2660.6,1.11297]
[1727167239995,2.62945259,2661.2,2660.6,0.7371]
[1727167239996,0.7118,2661.2,2660.6,0.7371]
[1727167240204,0.37581,2661.1,2660.7,3.58365]
[1727167240410,3.01581,2661.1,2660.7,3.58365]
[1727167240598,3.01581,2661.1,2660.8,0.37584]
[1727167240807,2.64,2661.1,2660.8,0.37584]
[1727167241112,2.64,2661.1,2660.7,3.2078]
[1727167241409,2.64,2661.1,2660.8,0.37583]
[1727167243205,3.0158,2661.1,2660.7,3.58365]
[1727167243403,0.37582,2661.0,2660.7,3.2078]
[1727167243607,0.37583,2660.9,2660.7,3.2078]
[1727167244100,0.37582,2661.0,2660.7,3.2078]
[1727167244299,0.37584,2660.8,2660.7,3.2078]
[1727167245611,5.07385,2660.8,2660.7,3.2078]
[1727167245809,5.82135,2660.8,2660.7,3.2078]
[1727167247012,1.31555,2660.6,2660.5,0.18]
[1727167247222,3.95555,2660.6,2660.5,0.18]
[1727167247419,13.71395,2660.6,2660.5,0.18]
[1727167247616,13.71395,2660.6,2659.8,1.4173]
[1727167247617,14.41985,2660.6,2659.8,1.79328]
[1727167247915,14.41985,2660.6,2659.6,3.2078]
[1727167247916,0.37597,2659.9,2659.6,3.2078]
[1727167248719,3.3951,2660.0,2659.6,3.2078]
[1727167248922,3.77106,2660.0,2659.6,3.2078]
[1727167249815,3.77106,2660.0,2659.5,1.06422]
[1727167250013,0.37597,2659.9,2659.5,0.6882]
[1727167250519,2.64,2659.7,2659.5,0.6882]
[1727167250823,3.016,2659.7,2659.4,0.695]
[1727167251013,3.76,2659.6,2659.3,3.2078]
[1727167251322,0.37599,2659.8,2659.3,3.58385]
[1727167251515,0.376,2659.7,2659.3,3.2078]
[1727167252213,0.37602,2659.6,2659.3,3.2078]
[1727167252416,0.376,2659.7,2659.3,3.2078]
[1727167252813,2.64,2659.9,2659.3,3.2078]
[1727167252814,0.37601,2659.6,2659.3,3.2078]
[1727167254011,2.64,2659.9,2659.3,3.2078]
[1727167254213,0.37603,2659.5,2659.3,3.2078]
[1727167255028,0.37602,2659.6,2659.3,3.2078]
[1727167255222,0.37599,2659.8,2659.4,0.37604]
[1727167255530,0.376,2659.7,2659.4,0.37604]
[1727167255931,0.37601,2659.6,2659.3,3.2078]
[1727167256629,0.37601,2659.6,2659.3,3.58385]
[1727167256824,0.37604,2659.4,2659.3,3.2078]
[1727167257124,0.37603,2659.5,2659.3,3.2078]
[1727167257428,0.37602,2659.6,2659.3,3.2078]
[1727167257630,2.64,2659.7,2659.3,3.2078]
[1727167257822,3.01601,2659.7,2659.3,3.58385]
[1727167258022,5.88262775,2660.0,2659.4,0.37603]
[1727167258023,2.64,2659.9,2659.4,0.37603]
[1727167258331,2.64,2659.9,2659.3,3.2078]
[1727167258332,0.37601,2659.7,2659.3,3.58385]
[1727167258520,0.37601,2659.6,2659.3,3.58385]
[1727167259218,0.93996,2659.8,2659.3,3.2078]
[1727167259518,0.37603,2659.5,2659.3,3.2078]
[1727167260229,2.64,2659.6,2659.3,3.2078]
[1727167260615,2.64,2659.6,2659.3,3.58384]
[1727167260815,0.93998,2659.8,2659.4,0.37603]
[1727167260816,2.64,2659.8,2659.4,0.37603]
[1727167261127,0.97981775,2659.9,2659.3,3.2078]
[1727167261128,0.37597,2659.9,2659.6,0.37601]
[1727167261426,0.37597,2659.9,2659.7,1.4389]
[1727167261732,0.37598,2659.8,2659.7,1.4389]
[1727167262121,0.97981775,2660.0,2659.7,11.1989]
[1727167262317,7.70181775,2660.5,2659.9,3.2078]
[1727167262523,2.64,2660.3,2659.9,3.2078]
[1727167262820,0.37594,2660.1,2659.9,3.2078]
[1727167263223,0.37595,2660.0,2659.9,3.2078]
[1727167263634,0.37595,2660.1,2659.9,3.2078]
[1727167264127,0.37595,2660.0,2659.9,3.2078]
[1727167264325,0.37595,2660.0,2659.7,1.4389]
[1727167264326,0.37598,2659.8,2659.7,1.4389]
[1727167264930,1.91973775,2660.0,2659.7,1.4389]
[1727167264931,0.97981775,2660.0,2659.7,1.4389]
[1727167265323,0.37598,2659.8,2659.7,1.4389]
[1727167265528,0.37601,2659.6,2659.4,3.2078]
[1727167265730,1.91978775,2659.8,2659.4,3.2078]
[1727167266026,0.37602,2659.5,2659.4,3.2078]
[1727167266722,0.37607,2659.2,2659.1,4.6592]
[1727167267124,0.37603,2659.5,2659.1,5.03527]
[1727167267317,0.37603,2659.5,2659.1,4.6592]
[1727167267722,0.37603,2659.5,2659.1,5.03527]
[1727167267723,0.37604,2659.5,2659.1,5.03527]
[1727167267920,1.72351775,2659.7,2659.2,0.37606]
[1727167268128,0.37602,2659.6,2659.2,0.37606]
[1727167268430,0.37606,2659.3,2659.1,4.6592]
[1727167269130,0.37607,2659.2,2659.1,4.6592]
[1727167270726,6.82761775,2659.5,2659.1,4.6592]
[1727167270926,0.37606,2659.3,2659.1,4.6592]
[1727167271125,4.18761775,2659.5,2659.1,5.03527]
[1727167271126,0.37605,2659.4,2659.1,5.03527]
[1727167272126,0.97981775,2659.6,2659.1,4.6592]
[1727167272329,0.97981775,2659.8,2659.1,7.2992]
[1727167272531,0.37599,2659.8,2659.5,0.37601]
[1727167273027,0.37599,2659.8,2659.4,0.37603]
[1727167273235,0.376,2659.7,2659.4,0.37604]
[1727167273433,0.37601,2659.6,2659.3,0.37605]
[1727167273619,0.37601,2659.7,2659.3,0.37605]
[1727167273820,0.37602,2659.6,2659.3,0.37605]
[1727167274435,2.64,2659.7,2659.3,0.37605]
[1727167274436,3.01601,2659.7,2659.3,0.37605]
[1727167274736,3.01601,2659.7,2659.2,1.13106]
[1727167274737,0.37603,2659.5,2659.2,1.13106]
[1727167275132,3.016,2659.7,2659.4,0.37604]
[1727167275327,2.64,2659.7,2659.5,0.37602]
[1727167275629,3.016,2659.7,2659.6,0.8262]
[1727167275838,2.64,2659.7,2659.2,0.755]
[1727167276030,0.37602,2659.6,2659.3,0.8262]
[1727167276231,0.37602,2659.6,2659.3,1.20225]
[1727167276930,2.64,2659.7,2659.4,0.37603]
[1727167277450,0.37602,2659.6,2659.3,1.20225]
[1727167277947,0.37603,2659.5,2659.3,0.8262]
[1727167278146,0.37604,2659.4,2659.3,0.8262]
[1727167279644,0.37606,2659.3,2659.1,3.9631]
[1727167280548,2.64,2659.2,2658.7,3.2078]
[1727167280755,3.01607,2659.2,2658.9,1.0913]
[1727167280941,0.37608,2659.1,2658.9,0.7152]
[1727167281139,3.01607,2659.2,2658.9,1.09131]
[1727167281652,2.64,2659.4,2659.1,0.37608]
[1727167281856,2.64,2659.4,2659.0,3.58389]
[1727167281857,0.37606,2659.3,2659.0,3.58389]
[1727167282750,2.64,2659.4,2659.1,0.37608]
[1727167282954,2.64,2659.4,2659.0,3.2078]
[1727167283152,2.64,2659.4,2659.2,0.37606]
[1727167283353,3.01604,2659.4,2659.1,0.37607]
[1727167283557,0.37606,2659.3,2659.0,3.58388]
[1727167283754,0.37606,2659.3,2659.0,3.2078]
[1727167283957,0.37606,2659.3,2659.0,3.58389]
[1727167284149,2.64,2659.4,2659.0,3.2078]
[1727167284351,0.94009,2659.5,2659.0,3.2078]
[1727167284352,0.37608,2659.1,2659.0,3.2078]
[1727167284753,3.01608,2659.2,2659.0,3.2078]
[1727167284954,3.3578,2659.4,2659.1,0.37608]
[1727167285157,0.37606,2659.3,2659.0,3.58389]
[1727167285352,3.3578,2659.4,2659.1,0.37607]
[1727167285554,0.37606,2659.3,2659.0,3.58388]
[1727167285759,0.37606,2659.3,2659.0,3.2078]
[1727167285961,3.01604,2659.4,2659.1,0.37608]
[1727167286649,3.01604,2659.4,2659.2,0.8152]
[1727167287453,0.37605,2659.3,2659.2,0.8152]
[1727167288255,0.94015,2659.3,2659.0,3.2078]
[1727167288454,0.37608,2659.1,2659.0,3.2078]
[1727167289557,3.99589775,2659.2,2659.0,3.2078]
[1727167289758,3.61981775,2659.2,2659.0,3.2078]
[1727167289953,0.97981775,2659.3,2659.0,3.2078]
[1727167290162,3.61981775,2659.4,2659.0,3.2078]
[1727167290467,2.64,2659.2,2659.0,3.2078]
[1727167290765,0.37608,2659.1,2659.0,3.2078]
[1727167291351,1.35589775,2659.1,2659.0,3.2078]
[1727167291958,6.05690775,2659.1,2659.0,3.2078]
[1727167292259,6.05690775,2659.1,2658.7,0.7795]
[1727167292260,0.37612,2658.8,2658.7,0.7795]
[1727167292469,3.01612,2658.8,2658.7,0.7795]
[1727167293150,2.64,2658.8,2658.7,0.7795]
[1727167293557,4.00051165,2658.8,2658.7,0.7795]
[1727167294662,4.00051165,2658.8,2658.5,1.10256]
[1727167295058,4.00051165,2658.8,2658.5,0.7264]
[1727167295262,1.36053165,2658.7,2658.5,0.7264]
[1727167295462,1.36053165,2658.7,2658.5,1.10256]
[1727167295463,0.98439165,2658.7,2658.5,1.10256]
[1727167296368,0.98439165,2658.7,2658.5,0.7264]
[1727167296866,1.36053165,2658.7,2658.5,0.7264]
[1727167297561,0.98439165,2658.7,2658.5,1.10257]
[1727167297862,1.36053165,2658.7,2658.5,0.7264]
[1727167298056,0.98439165,2658.7,2658.5,0.7264]
[1727167298256,0.98439165,2658.7,2658.6,0.37615]
[1727167298452,1.36051165,2658.9,2658.6,0.37615]
[1727167298667,0.98439165,2658.9,2658.8,0.37612]
[1727167298859,0.98439165,2659.1,2659.0,0.3761]
[1727167299162,0.98439165,2659.2,2659.1,0.37608]
[1727167299363,0.98439165,2659.3,2659.1,0.37608]
[1727167299564,1.36044165,2659.3,2659.0,1.97429]
[1727167299760,0.98439165,2659.2,2659.1,0.37608]
[1727167300568,0.98439165,2659.3,2659.2,0.37607]
[1727167300764,4.10972662,2659.5,2659.3,0.37605]
[1727167300765,0.98439165,2659.4,2659.3,0.37605]
[1727167301065,4.10972662,2659.5,2659.3,0.37605]
[1727167301267,4.48575662,2659.5,2659.2,0.37606]
[1727167301566,0.98432797,2659.4,2659.3,0.37605]
[1727167301964,0.98432797,2659.4,2659.2,0.37606]
[1727167302161,4.48575662,2659.5,2659.2,0.37606]
[1727167302162,0.98432797,2659.3,2659.2,0.37606]
[1727167302561,0.98432797,2659.4,2659.2,0.37606]
[1727167302962,0.98432797,2659.4,2659.3,0.37605]
[1727167303369,0.98432797,2659.4,2659.0,1.5982]
[1727167303370,0.98436896,2659.4,2659.0,1.5982]
[1727167303569,0.98436896,2659.4,2659.2,0.37606]
[1727167304564,0.98436896,2659.4,2659.0,1.5982]